bitfinex/quotes_BTCUSD_20241117
["timestamp","ask_amount","ask_price","bid_price","bid_amount"]
[1731815328836,0.222059,90066.0,90058.0,0.0017114]
[1731815329055,0.111035,90062.0,90058.0,0.0017114]
[1731815330200,0.111032,90064.0,90059.0,0.111037]
[1731815330444,0.16743407,90068.0,90058.0,0.0017114]
[1731815330667,0.15943407,90068.0,90058.0,0.0017114]
[1731815330887,0.111038,90059.0,90058.0,0.0017114]
[1731815334545,0.191738,90059.0,90058.0,0.0017114]
[1731815335890,0.22800681,90059.0,90058.0,0.0017114]
[1731815343799,0.29980681,90059.0,90058.0,0.0017114]
[1731815344425,0.30424781,90059.0,90058.0,0.0017114]
[1731815345255,0.32494647,90059.0,90058.0,0.0017114]
[1731815345727,0.31694647,90059.0,90058.0,0.0017114]
[1731815347781,0.42600902,90059.0,90058.0,0.0017114]
[1731815349778,0.31694647,90059.0,90058.0,0.0017114]
[1731815349992,0.31250547,90059.0,90058.0,0.0017114]
[1731815350240,0.13930681,90059.0,90058.0,0.0017114]
[1731815352376,0.103038,90059.0,90058.0,0.0017114]
[1731815352808,0.103038,90059.0,90053.0,0.111045]
[1731815353052,0.103038,90059.0,90054.0,0.111044]
[1731815353704,0.222071,90062.0,90048.0,0.222103]
[1731815353926,0.0481,90066.0,90049.0,0.20438746]
[1731815353927,0.03551874,90063.0,90049.0,0.20438746]
[1731815354151,0.1118826,90068.0,90062.0,0.111034]
[1731815354373,0.16743407,90066.0,90065.0,0.11103]
[1731815354607,0.0008556,90068.0,90055.0,0.22430664]
[1731815354608,0.1118826,90068.0,90055.0,0.10906255]
[1731815354817,0.1118826,90068.0,90063.0,0.111032]
[1731815355464,0.0008556,90068.0,90067.0,0.111028]
[1731815355899,0.0008556,90068.0,90067.0,0.22009055]
[1731815358345,0.0008556,90068.0,90067.0,0.30019055]
[1731815360531,0.0008556,90068.0,90067.0,0.30519055]
[1731815360738,0.16028967,90079.0,90078.0,0.111014]
[1731815361244,0.1118635,90084.0,90079.0,0.111012]
[1731815361459,0.1118635,90084.0,90076.0,0.111017]
[1731815361460,0.1118625,90084.0,90076.0,0.111017]
[1731815361662,0.1118625,90084.0,90079.0,0.111013]
[1731815362324,0.1118625,90084.0,90068.0,0.005]
[1731815362325,0.0008555,90084.0,90061.0,0.08121749]
[1731815362546,0.111017,90077.0,90068.0,0.33111655]
[1731815362754,0.111017,90077.0,90071.0,0.111022]
[1731815363192,0.111014,90078.0,90070.0,0.111023]
[1731815363427,0.111017,90076.0,90070.0,0.111023]
[1731815363642,0.222028,90079.0,90068.0,0.10906255]
[1731815363643,0.111015,90078.0,90072.0,0.111021]
[1731815363899,0.222033,90077.0,90070.0,0.111023]
[1731815364107,0.222028,90079.0,90069.0,0.222051]
[1731815364325,0.111019,90075.0,90070.0,0.111023]
[1731815364553,0.222028,90079.0,90070.0,0.111023]
[1731815364760,0.111016,90077.0,90069.0,0.10906255]
[1731815364989,0.111016,90077.0,90071.0,0.111023]
[1731815365232,0.111018,90076.0,90070.0,0.111024]
[1731815365445,0.222022,90081.0,90069.0,0.10906255]
[1731815365661,0.222022,90081.0,90070.0,0.111023]
[1731815365882,0.0008555,90084.0,90069.0,0.10906255]
[1731815365883,0.111009,90082.0,90069.0,0.10906255]
[1731815366110,0.11102,90074.0,90069.0,0.10906255]
[1731815366353,0.111017,90076.0,90070.0,0.111024]
[1731815366595,0.111017,90076.0,90069.0,0.10906255]
[1731815366596,0.111017,90076.0,90071.0,0.111022]
[1731815367017,0.111019,90075.0,90069.0,0.22008755]
[1731815367226,0.111019,90075.0,90070.0,0.111024]
[1731815368360,0.0008555,90084.0,90069.0,0.10906255]
[1731815368594,0.16743407,90081.0,90069.0,0.10906255]
[1731815369061,0.111012,90080.0,90074.0,0.111019]
[1731815369293,0.0008555,90084.0,90069.0,0.10906255]
[1731815369521,0.0008555,90084.0,90080.0,0.111012]
[1731815369740,0.0008555,90084.0,90076.0,0.222034]
[1731815369968,0.0008555,90084.0,90083.0,0.111008]
[1731815371665,0.0008555,90084.0,90083.0,0.3006905]
[1731815371879,0.0008555,90084.0,90083.0,0.29847055]
[1731815373052,0.0008555,90084.0,90083.0,0.35007055]
[1731815375826,0.16298137,90102.0,90098.0,0.110989]
[1731815376074,0.16397487,90102.0,90089.0,0.222002]
[1731815376300,0.1287,90100.0,90081.0,0.222021]
[1731815376568,0.09310409,90099.0,90082.0,0.16743407]
[1731815376783,0.222002,90090.0,90075.0,0.222037]
[1731815377001,0.1296857,90100.0,90083.0,0.111008]
[1731815377213,0.1296857,90100.0,90081.0,0.222021]
[1731815377454,0.1296857,90100.0,90085.0,0.111006]
[1731815377664,0.111,90090.0,90085.0,0.111006]
[1731815378103,0.111,90090.0,90081.0,0.222021]
[1731815378309,0.111,90090.0,90083.0,0.111008]
[1731815378518,0.111,90090.0,90084.0,0.111007]
[1731815378728,0.16500446,90100.0,90081.0,0.222021]
[1731815378940,0.110998,90092.0,90081.0,0.222021]
[1731815379149,0.111001,90090.0,90081.0,0.222021]
[1731815379611,0.111001,90090.0,90084.0,0.111007]
[1731815380713,0.16500446,90100.0,90077.0,0.222029]
[1731815380942,0.110996,90093.0,90085.0,0.111005]
[1731815381154,0.110999,90091.0,90085.0,0.111005]
[1731815381591,0.221992,90094.0,90078.0,0.10906255]
[1731815381793,0.111,90090.0,90079.0,0.222027]
[1731815382014,0.111,90090.0,90084.0,0.111007]
[1731815382252,0.111,90090.0,90085.0,0.111006]
[1731815382509,0.16500446,90100.0,90096.0,0.110991]
[1731815382510,0.0009857,90100.0,90096.0,0.110991]
[1731815382719,0.0009857,90100.0,90085.0,0.18746255]
[1731815382720,0.0009857,90100.0,90097.0,0.110991]
[1731815382937,0.16298137,90102.0,90094.0,0.221988]
[1731815383170,0.110987,90101.0,90096.0,0.110992]
[1731815384132,0.110986,90102.0,90096.0,0.110992]
[1731815384602,0.0008553,90103.0,90088.0,0.222005]
[1731815384840,0.110988,90100.0,90094.0,0.110994]
[1731815385065,0.110988,90100.0,90095.0,0.110993]
[1731815385285,0.110986,90102.0,90096.0,0.110992]
[1731815385722,0.110986,90101.0,90096.0,0.110992]
[1731815385991,0.0008553,90103.0,90095.0,0.110992]
[1731815386218,0.110987,90101.0,90095.0,0.110992]
[1731815386461,0.221975,90100.0,90091.0,0.10906255]
[1731815386689,0.110991,90098.0,90093.0,0.110995]
[1731815387333,0.110987,90100.0,90094.0,0.110994]
[1731815388073,0.16743407,90101.0,90079.0,0.222026]
[1731815388304,0.16743407,90101.0,90070.0,0.24359383]
[1731815388305,0.22198,90098.0,90084.0,0.16743407]
[1731815388515,0.1284,90100.0,90084.0,0.16743407]
[1731815388516,0.221985,90096.0,90084.0,0.16743407]
[1731815388723,0.111001,90090.0,90084.0,0.111006]
[1731815388952,0.221979,90099.0,90080.0,0.222024]
[1731815389190,0.16743407,90099.0,90088.0,0.0017106]
[1731815389460,0.16743407,90099.0,90089.0,0.33106455]
[1731815389913,0.27842307,90099.0,90094.0,0.110995]
[1731815390357,0.110989,90099.0,90094.0,0.110995]
[1731815390774,0.102989,90099.0,90094.0,0.110995]
[1731815394975,0.0466,90100.0,90089.0,0.10906255]
[1731815395185,0.11099,90098.0,90093.0,0.110996]
[1731815396697,0.11099,90098.0,90089.0,0.10906255]
[1731815396698,0.11099,90098.0,90091.0,0.221997]
[1731815397826,0.11099,90098.0,90093.0,0.110995]
[1731815398253,0.157588,90100.0,90093.0,0.110995]
[1731815398899,0.157588,90100.0,90094.0,0.110994]
[1731815399108,0.157588,90100.0,90092.0,0.221995]
[1731815399109,0.0466,90100.0,90092.0,0.221995]
[1731815399321,0.0008553,90103.0,90101.0,0.110985]
[1731815399541,0.0008553,90103.0,90102.0,0.110985]
[1731815402498,0.0008553,90103.0,90101.0,0.110986]
[1731815402976,0.0008553,90103.0,90096.0,0.221983]
[1731815403202,0.0008553,90103.0,90096.0,0.10906255]
[1731815403388,0.0008553,90103.0,90097.0,0.332973]
[1731815403622,0.0008553,90103.0,90098.0,0.110989]
[1731815403939,0.0008553,90103.0,90099.0,0.110988]
[1731815405040,0.0008553,90103.0,90096.0,0.10906255]
[1731815405309,0.0008553,90103.0,90098.0,0.110989]
[1731815405310,0.1118393,90103.0,90098.0,0.110989]
[1731815405759,0.1038393,90103.0,90098.0,0.110989]
[1731815405973,0.110987,90101.0,90096.0,0.22005455]
[1731815406135,0.22196,90106.0,90096.0,0.10906255]
[1731815406529,0.110983,90104.0,90099.0,0.110988]
[1731815406728,0.22196,90106.0,90096.0,0.10906255]
[1731815406927,0.110984,90103.0,90097.0,0.110991]
[1731815407963,0.22196,90106.0,90096.0,0.10906255]
[1731815408174,0.22196,90106.0,90093.0,0.443984]
[1731815408175,0.16743407,90103.0,90090.0,0.222]
[1731815408374,0.0008558,90109.0,90090.0,0.222]
[1731815408375,0.158795,90094.0,90090.0,0.10906255]
[1731815408593,0.158795,90094.0,90090.0,0.22006155]
[1731815408594,0.0478,90094.0,90090.0,0.22006155]
[1731815409202,0.0478,90094.0,90091.0,0.221997]
[1731815409424,0.08,90101.0,90091.0,0.221997]
[1731815409425,0.08,90101.0,90097.0,0.11099]
[1731815409646,0.0478,90102.0,90094.0,0.221989]
[1731815409873,0.0478,90102.0,90092.0,0.10906255]
[1731815410095,0.0478,90102.0,90096.0,0.110991]
[1731815410096,0.158785,90102.0,90096.0,0.110991]
[1731815410346,0.0478,90102.0,90088.0,0.0017106]
[1731815410561,0.221975,90100.0,90089.0,0.10906255]
[1731815410782,0.110997,90093.0,90089.0,0.10906255]
[1731815411230,0.221978,90099.0,90089.0,0.10906255]
[1731815411443,0.110995,90094.0,90089.0,0.10906255]
[1731815412159,0.110993,90096.0,90090.0,0.110999]
[1731815412403,0.110994,90095.0,90090.0,0.22006155]
[1731815412635,0.22198,90098.0,90091.0,0.110997]
[1731815412636,0.110991,90097.0,90091.0,0.110997]
[1731815413094,0.269771,90102.0,90090.0,0.10906255]
[1731815413095,0.0478,90102.0,90090.0,0.10906255]
[1731815413326,0.11099,90098.0,90090.0,0.22006155]
[1731815413546,0.11099,90098.0,90090.0,0.10906255]
[1731815413769,0.11099,90098.0,90092.0,0.110997]
[1731815413999,0.110992,90097.0,90091.0,0.110998]
[1731815415060,0.110989,90099.0,90090.0,0.33106155]
[1731815415270,0.0478,90102.0,90090.0,0.10906255]
[1731815415492,0.110992,90097.0,90092.0,0.110997]
[1731815415731,0.110992,90097.0,90090.0,0.22006055]
[1731815415946,0.110992,90097.0,90091.0,0.110998]
[1731815416166,0.0478,90102.0,90090.0,0.10906255]
[1731815416388,0.32621907,90102.0,90096.0,0.110992]
[1731815416625,0.32621907,90102.0,90090.0,0.09309557]
[1731815416626,0.0478,90102.0,90099.0,0.110988]
[1731815417339,0.0478,90102.0,90097.0,0.10906255]
[1731815417556,0.221973,90101.0,90097.0,0.10906255]
[1731815417770,0.0478,90102.0,90097.0,0.10906255]
[1731815418010,0.02075513,90101.0,90097.0,0.10906255]
[1731815418215,0.158785,90102.0,90097.0,0.10906255]
[1731815418864,0.0478,90102.0,90097.0,0.10906255]
[1731815419077,0.0478,90102.0,90098.0,0.11099]
[1731815419275,0.02076503,90101.0,90098.0,0.11099]
[1731815419508,0.0478,90102.0,90098.0,0.11099]
[1731815420126,0.02076599,90101.0,90098.0,0.11099]
[1731815420337,0.0478,90102.0,90098.0,0.11099]
[1731815420579,0.0398,90102.0,90097.0,0.10906255]
[1731815420809,0.0398,90102.0,90099.0,0.110988]
[1731815421222,0.0398,90102.0,90101.0,0.110986]
[1731815421462,0.0008553,90103.0,90102.0,0.110985]
[1731815421928,0.0008553,90103.0,90102.0,0.22004755]
[1731815422847,0.0008553,90103.0,90102.0,0.29644755]
[1731815423934,0.0008553,90103.0,90102.0,0.30144755]
[1731815424813,0.0008553,90103.0,90102.0,0.44321081]
[1731815425238,0.0008553,90103.0,90102.0,0.48007014]
[1731815432044,0.0008553,90103.0,90102.0,0.22004755]
[1731815432237,0.0008553,90103.0,90102.0,0.110985]
[1731815433759,0.0008553,90103.0,90100.0,0.110987]
[1731815434020,0.0008553,90103.0,90100.0,0.10906255]
[1731815434246,0.0008553,90103.0,90099.0,0.221977]
[1731815434448,0.0008553,90103.0,90100.0,0.110987]
[1731815434672,0.0008553,90103.0,90099.0,0.33103955]
[1731815434673,0.0008553,90103.0,90102.0,0.110985]
[1731815435770,0.0458558,90109.0,90099.0,0.10906255]
[1731815435771,0.110986,90101.0,90099.0,0.10906255]
[1731815436049,0.221955,90108.0,90099.0,0.10906255]
[1731815436266,0.110982,90105.0,90099.0,0.22005055]
[1731815436691,0.11098,90106.0,90101.0,0.110986]
[1731815438347,0.221955,90108.0,90099.0,0.10906255]
[1731815438596,0.110979,90107.0,90101.0,0.110986]
[1731815439254,0.221955,90108.0,90098.0,0.0017106]
[1731815439486,0.110986,90102.0,90098.0,0.0017106]
[1731815439947,0.110986,90102.0,90098.0,0.00164469]
[1731815440399,0.110986,90101.0,90098.0,0.00164469]
[1731815440606,0.221958,90107.0,90098.0,0.00164469]
[1731815440844,0.110984,90103.0,90098.0,0.00164469]
[1731815441069,0.110984,90103.0,90098.0,0.11263469]
[1731815441987,0.221963,90105.0,90098.0,0.00164469]
[1731815442205,0.110985,90102.0,90098.0,0.00164469]
[1731815442961,0.22196,90106.0,90098.0,0.00164469]
[1731815443204,0.110985,90102.0,90098.0,0.00164469]
[1731815443476,0.110983,90104.0,90098.0,0.00164469]
[1731815443707,0.221963,90105.0,90098.0,0.00164469]
[1731815443708,0.110985,90103.0,90098.0,0.00164469]
[1731815443963,0.221963,90105.0,90098.0,0.00164469]
[1731815443964,0.110986,90101.0,90098.0,0.00164469]
[1731815444178,0.221965,90104.0,90098.0,0.00164469]
[1731815444398,0.110984,90103.0,90098.0,0.00164469]
[1731815445289,0.110985,90102.0,90098.0,0.00164469]
[1731815447482,0.110987,90101.0,90098.0,0.00164469]
[1731815449498,0.0008553,90103.0,90098.0,0.00164469]
[1731815449731,0.110986,90102.0,90098.0,0.00164469]
[1731815449952,0.0008553,90103.0,90098.0,0.00164469]
[1731815450181,0.110986,90101.0,90098.0,0.00164469]
[1731815450638,0.102986,90101.0,90098.0,0.00164469]
[1731815451984,0.0008553,90103.0,90098.0,0.11263369]
[1731815452216,0.1118393,90103.0,90098.0,0.11263369]
[1731815452441,0.110986,90102.0,90098.0,0.00164469]
[1731815452874,0.0008553,90103.0,90102.0,0.110985]
[1731815453095,0.0008553,90103.0,90099.0,0.221976]
[1731815453096,0.0008553,90103.0,90100.0,0.110986]
[1731815453332,0.1118393,90103.0,90098.0,0.11263369]
[1731815453546,0.0008553,90103.0,90100.0,0.110987]
[1731815453750,0.0008553,90103.0,90098.0,0.00164469]
[1731815453968,0.0008553,90103.0,90098.0,0.11263369]
[1731815454181,0.0008553,90103.0,90100.0,0.110986]
[1731815454607,0.0008553,90103.0,90098.0,0.11263369]
[1731815455011,0.0008553,90103.0,90099.0,0.110988]
[1731815455441,0.0008553,90103.0,90102.0,0.110985]
[1731815455643,0.0008553,90103.0,90101.0,0.110985]
[1731815455850,0.0008553,90103.0,90099.0,0.110988]
[1731815456071,0.0008553,90103.0,90101.0,0.110986]
[1731815458128,0.0008553,90103.0,90102.0,0.110985]
[1731815460821,0.0008553,90103.0,90099.0,0.221975]
[1731815461057,0.0008553,90103.0,90102.0,0.110985]
[1731815465313,0.0008553,90103.0,90102.0,0.22004755]
[1731815465599,0.0008553,90103.0,90102.0,0.34976708]
[1731815465807,0.05,90109.0,90108.0,0.20905962]
[1731815465808,0.0428553,90109.0,90108.0,0.20905962]
[1731815466069,0.0428553,90109.0,90108.0,0.54562217]
[1731815466277,0.0428553,90109.0,90108.0,0.64570479]
[1731815466533,0.0428553,90109.0,90108.0,0.64370479]
[1731815466771,0.0428553,90109.0,90108.0,0.55062217]
[1731815466989,0.0428553,90109.0,90108.0,0.43964517]
[1731815467251,0.0428553,90109.0,90108.0,0.55062217]
[1731815467672,0.0428553,90109.0,90108.0,0.65023554]
[1731815468125,0.0428553,90109.0,90108.0,0.55715292]
[1731815468340,0.0428553,90109.0,90108.0,0.55062217]
[1731815469041,0.0428553,90109.0,90108.0,0.70004223]
[1731815469259,0.0428553,90109.0,90108.0,0.55062217]
[1731815469500,0.0428553,90109.0,90108.0,0.59062217]
[1731815470399,0.0437107,90109.0,90108.0,0.59062217]
[1731815472817,0.0437107,90109.0,90108.0,0.78960133]
[1731815473279,0.0437107,90109.0,90108.0,0.59062217]
[1731815473506,0.0437107,90109.0,90108.0,0.68370479]
[1731815473720,0.0437107,90109.0,90108.0,0.59062217]
[1731815474242,0.0437107,90109.0,90108.0,0.68570479]
[1731815474482,0.0008558,90118.0,90117.0,0.48023124]
[1731815474729,0.0008558,90118.0,90117.0,0.58929379]
[1731815477164,0.0008558,90118.0,90117.0,0.68869787]
[1731815477375,0.0008558,90118.0,90117.0,0.58929379]
[1731815477822,0.0008558,90118.0,90117.0,0.68869787]
[1731815478306,0.0008558,90118.0,90117.0,0.68861987]
[1731815479184,0.0008558,90118.0,90117.0,0.64725033]
[1731815480732,0.16285627,90131.0,90123.0,0.005]
[1731815481048,0.000855,90140.0,90139.0,0.110939]
[1731815481269,0.126155,90140.0,90139.0,0.110939]
[1731815485177,0.000855,90140.0,90139.0,0.110939]
[1731815489726,0.125355,90140.0,90139.0,0.110939]
[1731815489946,0.0461,90138.0,90118.0,0.005]
[1731815490188,0.110945,90135.0,90129.0,0.16743407]
[1731815490432,0.110943,90136.0,90130.0,0.11095]
[1731815490697,0.110944,90136.0,90127.0,0.221909]
[1731815490930,0.1245,90135.0,90118.0,0.221931]
[1731815491187,0.1245,90135.0,90122.0,0.16743407]
[1731815491188,0.157055,90127.0,90122.0,0.16743407]
[1731815491415,0.157055,90127.0,90121.0,0.09406812]
[1731815491416,0.0461,90127.0,90121.0,0.09406812]
[1731815491651,0.157054,90127.0,90121.0,0.20404362]
[1731815491871,0.157055,90127.0,90121.0,0.09308262]
[1731815492117,0.157055,90127.0,90122.0,0.11096]
[1731815492315,0.110955,90126.0,90121.0,0.20404362]
[1731815492545,0.0461,90127.0,90122.0,0.11096]
[1731815492796,0.0461,90127.0,90121.0,0.09308262]
[1731815493028,0.0461,90127.0,90126.0,0.110955]
[1731815494541,0.0469553,90127.0,90126.0,0.110955]
[1731815495173,0.0469553,90127.0,90126.0,0.20403762]
[1731815495629,0.0461,90133.0,90126.0,0.09308262]
[1731815495849,0.0461,90133.0,90131.0,0.110948]
[1731815496525,0.0461,90133.0,90132.0,0.110948]
[1731815496751,0.0461,90139.0,90134.0,0.110944]
[1731815496972,0.0461,90139.0,90135.0,0.110944]
[1731815497431,0.0461,90139.0,90133.0,0.221894]
[1731815497432,0.0461,90139.0,90138.0,0.110941]
[1731815497637,0.0461,90139.0,90137.0,0.110942]
[1731815498061,0.0461,90139.0,90136.0,0.110942]
[1731815498267,0.0461,90139.0,90134.0,0.10906255]
[1731815498480,0.0461,90139.0,90137.0,0.110942]
[1731815498702,0.1245,90139.0,90137.0,0.110942]
[1731815500658,0.1245,90139.0,90138.0,0.110941]
[1731815501960,0.0461,90139.0,90138.0,0.110941]
[1731815504023,0.000855,90140.0,90139.0,0.110939]
[1731815509387,0.000855,90140.0,90139.0,0.22000155]
[1731815509604,0.000855,90140.0,90139.0,0.64148552]
[1731815509816,0.000855,90140.0,90139.0,0.63926679]
[1731815510698,0.17587677,90156.0,90155.0,0.11092]
[1731815510699,0.17206438,90156.0,90155.0,0.11092]
[1731815510955,0.17206438,90156.0,90155.0,0.31306517]
[1731815511420,0.00463031,90156.0,90155.0,0.31306517]
[1731815513254,0.00463031,90156.0,90155.0,0.39416517]
[1731815515366,0.00463031,90156.0,90155.0,0.48724779]
[1731815516056,0.00463031,90156.0,90155.0,0.39416517]
[1731815519304,0.00463031,90156.0,90155.0,0.49224779]
[1731815519521,0.00463031,90156.0,90155.0,0.39916517]
[1731815519978,0.00548541,90156.0,90155.0,0.39916517]
[1731815520500,0.00548541,90156.0,90155.0,0.31306517]
[1731815525828,5.141e-05,90167.0,90166.0,0.09308262]
[1731815526035,5.141e-05,90167.0,90166.0,0.20398862]
[1731815527207,5.141e-05,90167.0,90166.0,0.31526916]
[1731815527432,5.141e-05,90167.0,90166.0,0.31305117]
[1731815533582,5.141e-05,90167.0,90166.0,0.10906255]
[1731815533817,0.0491,90165.0,90164.0,0.110907]
[1731815534060,0.0491,90165.0,90164.0,0.21996955]
[1731815534309,0.0491,90165.0,90155.0,0.0017098]
[1731815534566,0.0491,90165.0,90156.0,0.27649662]
[1731815534803,5.141e-05,90167.0,90155.0,0.0017098]
[1731815534804,0.160018,90156.0,90155.0,0.0017098]
[1731815535029,0.235818,90156.0,90155.0,0.0017098]
[1731815536197,0.1249,90156.0,90155.0,0.0017098]
[1731815540786,0.1169,90156.0,90155.0,0.0017098]
[1731815543290,0.227818,90156.0,90155.0,0.0017098]
[1731815544562,0.1169,90156.0,90155.0,0.0017098]
[1731815545246,0.227818,90156.0,90155.0,0.0017098]
[1731815546395,0.1169,90156.0,90155.0,0.0017098]
[1731815547086,0.227818,90156.0,90155.0,0.0017098]
[1731815547525,0.250818,90156.0,90155.0,0.0017098]
[1731815549337,0.28659693,90156.0,90155.0,0.0017098]
[1731815550254,0.28659693,90156.0,90155.0,0.0018828]
[1731815555746,0.27859693,90156.0,90155.0,0.0018828]
[1731815570717,0.27059693,90156.0,90155.0,0.0018828]
[1731815573744,0.36367955,90156.0,90155.0,0.0018828]
[1731815573988,0.27059693,90156.0,90155.0,0.0018828]
[1731815574672,0.36867955,90156.0,90155.0,0.0018828]
[1731815574898,0.47367955,90156.0,90155.0,0.0018828]
[1731815575115,0.5827421,90156.0,90155.0,0.0018828]
[1731815575351,0.5847421,90156.0,90155.0,0.0018828]
[1731815575825,0.5827421,90156.0,90155.0,0.0018828]
[1731815576054,0.59097753,90156.0,90155.0,0.0018828]
[1731815576296,0.350131,90146.0,90145.0,0.16743407]
[1731815576530,0.67035879,90146.0,90145.0,0.16743407]
[1731815576745,0.67035879,90146.0,90132.0,0.16743407]
[1731815576746,0.238943,90136.0,90132.0,0.16743407]
[1731815576963,0.3080902,90136.0,90132.0,0.16743407]
[1731815577400,0.3080902,90136.0,90122.0,0.0017102]
[1731815579203,0.30807469,90136.0,90122.0,0.0017102]
[1731815579428,0.40747304,90136.0,90122.0,0.0017102]
[1731815579642,0.30807469,90136.0,90122.0,0.0017102]
[1731815580919,0.32417298,90136.0,90122.0,0.0017102]
[1731815583995,0.34487968,90136.0,90122.0,0.0017102]
[1731815584692,0.34487639,90136.0,90122.0,0.0017102]
[1731815585599,0.33687639,90136.0,90122.0,0.0017102]
[1731815588037,0.33687281,90136.0,90122.0,0.0017102]
[1731815588268,0.31617298,90136.0,90122.0,0.0017102]
[1731815588913,0.31117298,90136.0,90122.0,0.0017102]
[1731815589363,0.31617298,90136.0,90122.0,0.0017102]
[1731815589824,0.31617298,90136.0,90124.0,0.075]
[1731815589825,0.26777298,90136.0,90124.0,0.075]
[1731815590060,0.26277298,90136.0,90124.0,0.075]
[1731815590267,0.110943,90136.0,90131.0,0.0487]
[1731815591646,0.110943,90136.0,90127.0,0.110954]
[1731815592066,0.110943,90136.0,90124.0,0.296914]
[1731815592067,0.03615238,90139.0,90131.0,0.110949]
[1731815592294,0.221878,90140.0,90132.0,0.110948]
[1731815592528,0.110941,90138.0,90134.0,0.0455]
[1731815592735,0.221867,90144.0,90136.0,0.0806]
[1731815593184,0.110938,90141.0,90136.0,0.0806]
[1731815594332,0.110935,90143.0,90137.0,0.110941]
[1731815594506,0.110937,90142.0,90136.0,0.0806]
[1731815594724,0.221867,90144.0,90136.0,0.0806]
[1731815594931,0.110937,90141.0,90136.0,0.0806]
[1731815596094,0.110935,90143.0,90136.0,0.191542]
[1731815596310,0.023,90147.0,90136.0,0.0806]
[1731815596515,0.05943019,90149.0,90138.0,0.11094]
[1731815596731,0.110935,90143.0,90136.0,0.191542]
[1731815597420,0.110931,90146.0,90140.0,0.110938]
[1731815597626,0.110932,90145.0,90140.0,0.110938]
[1731815597839,0.023,90147.0,90136.0,0.0806]
[1731815598048,0.110934,90144.0,90137.0,0.332825]
[1731815598311,0.110934,90144.0,90136.0,0.0806]
[1731815598543,0.110934,90144.0,90138.0,0.11094]
[1731815598983,0.110934,90144.0,90136.0,0.302485]
[1731815598984,0.03643019,90149.0,90140.0,0.110938]
[1731815599211,0.16743407,90152.0,90140.0,0.110938]
[1731815599415,0.11093,90147.0,90140.0,0.110938]
[1731815600084,0.110931,90146.0,90140.0,0.110938]
[1731815600299,0.110931,90146.0,90141.0,0.110937]
[1731815600707,0.102931,90146.0,90141.0,0.110937]
[1731815601815,0.03523999,90153.0,90139.0,0.10906255]
[1731815602030,0.0008549,90155.0,90141.0,0.221874]
[1731815602031,0.110925,90151.0,90141.0,0.221874]
[1731815602237,0.110925,90151.0,90142.0,0.221872]
[1731815602457,0.38927607,90154.0,90140.0,0.221877]
[1731815602663,0.38927607,90154.0,90139.0,0.10906255]
[1731815602664,0.110928,90149.0,90139.0,0.10906255]
[1731815602866,0.110928,90148.0,90142.0,0.110935]
[1731815603095,0.16743407,90154.0,90142.0,0.110935]
[1731815603384,0.110929,90147.0,90142.0,0.110935]
[1731815604160,0.221845,90153.0,90139.0,0.10906255]
[1731815604371,0.221845,90153.0,90143.0,0.110934]
[1731815604565,0.110927,90150.0,90143.0,0.110934]
[1731815604787,0.110928,90149.0,90143.0,0.110934]
[1731815604967,0.221845,90153.0,90139.0,0.10906255]
[1731815604968,0.110929,90148.0,90141.0,0.110936]
[1731815605205,0.221852,90150.0,90141.0,0.110936]
[1731815605415,0.11093,90147.0,90141.0,0.110936]
[1731815605854,0.110932,90145.0,90139.0,0.22000155]
[1731815606081,0.110932,90145.0,90140.0,0.110938]
[1731815606286,0.110932,90145.0,90139.0,0.10906255]
[1731815606287,0.221852,90150.0,90139.0,0.10906255]
[1731815606552,0.16743407,90152.0,90139.0,0.10906255]
[1731815606771,0.110934,90144.0,90139.0,0.10906255]
[1731815607005,0.110934,90144.0,90139.0,0.22000155]
[1731815607487,0.110933,90144.0,90139.0,0.10906255]
[1731815607924,0.110933,90144.0,90135.0,0.0017102]
[1731815607925,0.221874,90141.0,90135.0,0.0017102]
[1731815608156,0.110943,90136.0,90135.0,0.0017102]
[1731815615042,0.157043,90136.0,90135.0,0.0017102]
[1731815615709,0.102943,90136.0,90135.0,0.0017102]
[1731815616195,0.0469555,90143.0,90135.0,0.0017102]
[1731815616196,0.221874,90142.0,90135.0,0.0017102]
[1731815616432,0.221874,90141.0,90135.0,0.0017102]
[1731815616667,0.110942,90137.0,90135.0,0.0017102]
[1731815616885,0.110938,90140.0,90135.0,0.0017102]
[1731815617119,0.110941,90138.0,90135.0,0.0017102]
[1731815617358,0.110938,90140.0,90135.0,0.1126542]
[1731815617582,0.0008555,90143.0,90132.0,0.303696]
[1731815617583,0.110941,90138.0,90133.0,0.110946]
[1731815618074,0.0008555,90143.0,90133.0,0.110946]
[1731815618075,0.221874,90141.0,90133.0,0.110946]
[1731815618512,0.11094,90139.0,90133.0,0.110946]
[1731815618965,0.11094,90139.0,90132.0,0.07762603]
[1731815619185,0.110938,90140.0,90133.0,0.110947]
[1731815619408,0.0008555,90143.0,90134.0,0.110944]
[1731815619630,0.11094,90139.0,90134.0,0.110944]
[1731815619917,0.0008555,90143.0,90134.0,0.110944]
[1731815619918,0.0008555,90143.0,90135.0,0.10906255]
[1731815620149,0.0008555,90143.0,90142.0,0.110936]
[1731815621075,0.0008555,90143.0,90142.0,0.39488117]
[1731815622279,0.0008555,90143.0,90142.0,0.30179855]
[1731815623704,0.0008555,90143.0,90142.0,0.33845808]
[1731815623945,0.0008555,90143.0,90142.0,0.34345808]
[1731815624181,0.0008555,90143.0,90142.0,0.38925808]
[1731815625122,0.0008555,90143.0,90142.0,0.49425808]
[1731815625580,0.0008555,90143.0,90142.0,0.59364598]
[1731815625818,0.0008555,90143.0,90142.0,0.49425808]
[1731815626505,0.0008555,90143.0,90142.0,0.59547926]
[1731815627409,0.0008555,90143.0,90142.0,0.59544984]
[1731815627619,0.0008555,90143.0,90142.0,0.49625808]
[1731815627845,0.0008555,90143.0,90142.0,0.61782526]
[1731815628061,0.0008555,90143.0,90142.0,0.51862431]
[1731815628277,0.0008555,90143.0,90142.0,0.61782526]
[1731815628486,0.0008555,90143.0,90142.0,0.51862431]
[1731815628702,0.0008555,90143.0,90142.0,0.61782526]
[1731815629130,0.0008555,90143.0,90142.0,0.51862431]
[1731815629556,0.0008555,90143.0,90142.0,0.51662431]
[1731815630694,0.0008548,90166.0,90152.0,0.005]
[1731815630695,0.16743407,90153.0,90152.0,0.005]
[1731815630907,0.16743407,90153.0,90152.0,0.39806817]